{"text_format":"3","workbook":"xlsx","n_sheets":1,"sheets":["PRICING SCHEDULE"],"not_rendered":{"images":1,"defined_names":2},"read":"whole","date_system":"1900"}

{"sheet":"PRICING SCHEDULE","index":0,"n_rows":31,"n_cols":17,"rows_kept":31,"merged":[[12,4,14,4],[16,4,16,5],[16,6,16,7],[16,8,16,9],[16,10,16,11],[16,12,16,13],[19,1,19,2],[22,1,23,1],[22,2,23,2],[27,2,30,2]]}
[null,null,"SUPPLY CHAIN MANAGEMENT"]
[null,null,"Pricing schedule"]
["RFB No",null,"WO52592"]
["RFB Title",null,"REQUEST FOR BID TO FOLLOW THE SITA PROCUREMENT PROCESS TO MAINTAIN THE SUSE MANAGED SERVICE PROVIDER (MSP) PROGRAM FOR THE GPCE FOR A PERIOD OF 5 YEARS."]
["Bidder Name "]
["1. INSTRUCTION FOR COMPLETING THE PRICING SCHEDULE"]
["(a)  Bidder must complete/enter YELLOW cells only"]
["(b)  Unit and Line prices must be VAT EXCLUSIVE and in South African Rand (ZAR) currency."]
["(c) The price must include all cost to deliver the goods or render the service, including all applicable taxes, duty fees, logistics/delivery, storage, labour, overtime and subsistance and travel"]
["(d)  Prices that are dependent on Rate of Exchange (ROE) must use ROE indicated below, then enter in Column \"Forex %\" the percentage of the price that is ROE dependent (0% means the price is not ROE dependent)"]
["(e) Bidders must complete and submit bid pricing in the provided Excel spreadsheet format, and any pricing schedule submitted in a different format will not be considered."]
[null,null,"Foreign currency","South African Rand (ZAR) exchange rate "]
[null,null,"1 US Dollar",{"v":17.3,"d":"R17.30"},"Mark with an X, which ROE is applicable"]
[null,null,"1 Euro",{"v":19.95,"d":"R19.95"}]
[null,null,"1 Pound (UK)",{"v":22.67,"d":"R22.67"}]
[]
[{"$nulls":6},"YEAR 2",null,"YEAR 3",null,"YEAR 4",null,"YEAR 5",null,"TOTAL"]
["Item No","Good Name","Goods/Service description","Unit of measure","Unit Price \n(Excl VAT)","Line Price Y1","Unit Price \n(Excl VAT)","Line Price Y2","Unit Price \n(Excl VAT)","Line Price Y3","Unit Price \n(Excl VAT)","Line Price Y4","Unit Price \n(Excl VAT)","Line Price Y5","Line Price Term \n(Excl VAT)","BRAND / MODEL","Price clarification comment"]
[]
[1,"SUSE MSP program activation"]
["1.01","SUSE Managed Service Provider (SMSP)","SUSE MSP Catalogue","Year",0,{"$f":"E21","v":0},0,{"$f":"G21","v":0},0,{"$f":"I21","v":0},0,{"$f":"K21","v":0},0,{"$f":"M21","v":0},{"$f":"F21+H21+J21+L21+N21","v":0}]
[]
[{"$nulls":5},{"$f":"SUBTOTAL(9,F19:F21)","v":0},null,{"$f":"SUBTOTAL(9,H19:H21)","v":0},null,{"$f":"SUBTOTAL(9,J19:J21)","v":0},null,{"$f":"SUBTOTAL(9,L19:L21)","v":0},null,{"$f":"SUBTOTAL(9,N19:N21)","v":0},{"$f":"SUBTOTAL(9,O19:O21)","v":0}]
[{"$nulls":5},{"$f":"F23*0.15","v":0},null,{"$f":"H23*0.15","v":0},null,{"$f":"J23*0.15","v":0},null,{"$f":"L23*0.15","v":0},null,{"$f":"N23*0.15","v":0},{"$f":"O23*0.15","v":0}]
[null,null,"TOTAL  BID PRICE (INCL VAT)",null,null,{"$f":"F23+F24","v":0},null,{"$f":"H23+H24","v":0},null,{"$f":"J23+J24","v":0},null,{"$f":"L23+L24","v":0},null,{"$f":"N23+N24","v":0},{"$f":"O23+O24","v":0}]
[]
[]
[null,null,"I, the bidder, confirm that the price(s) and rate(s) quoted cover all the goods and/or works specified in the bidding documents; that the price(s) or rate(s) cover all my obligations and I accept that any mistakes regarding price(s), rate(s) or calculations will be at my own risk.\n[Note: First convert to PDF, then add signature]"]
[{"$nulls":3},"Name"]
[]
[{"$nulls":3},"Signature (above)"]